fUSD/lending_fUSD_20240923
["ID","MTS","AMOUNT","RATE_DAILY","PERIOD"]
[338949687,1727088660512,-500.0,0.0001299,2]
[338949688,1727088660522,-506.75,0.0001299,2]
[338949689,1727088660532,-500.0,0.0001299,2]
[338949690,1727088660543,-500.0,0.0001299,2]
[338949691,1727088660554,-733.42,0.0001299,2]
[338949692,1727088660565,-643.38,0.0001299,2]
[338949693,1727088660574,-500.0,0.0001299,2]
[338949694,1727088660584,-500.0,0.0001299,2]
[338949695,1727088660593,-500.0,0.0001299,2]
[338949696,1727088660603,-713.96,0.0001299,2]
[338949697,1727088660613,-532.01,0.0001299,2]
[338949698,1727088660624,-592.53,0.0001299,2]
[338949699,1727088660634,-500.0,0.0001299,2]
[338949700,1727088660644,-500.0,0.0001299,2]
[338949701,1727088660655,-936.36,0.0001299,2]
[338949702,1727088660665,-539.83,0.0001299,2]
[338949703,1727088660675,-500.0,0.0001299,2]
[338949704,1727088660685,-669.33,0.0001299,2]
[338949705,1727088660694,-347.93,0.0001299,2]
[338949706,1727088660704,-552.85,0.0001299,2]
[338949707,1727088660713,-500.0,0.0001299,2]
[338949708,1727088660722,-500.0,0.0001299,2]
[338949709,1727088660731,-835.15,0.0001299,2]
[338949710,1727088660741,-705.63,0.0001299,2]
[338949711,1727088660751,-500.0,0.0001299,2]
[338949712,1727088660760,-500.0,0.0001299,2]
[338949713,1727088660770,-500.0,0.0001299,2]
[338949714,1727088660779,-500.0,0.0001299,2]
[338949715,1727088660789,-500.0,0.0001299,2]
[338949716,1727088660799,-500.0,0.0001299,2]
[338949717,1727088660808,-500.0,0.0001299,2]
[338949718,1727088660818,-500.0,0.0001299,2]
[338949719,1727088660827,-500.0,0.0001299,2]
[338949720,1727088660840,-500.0,0.0001299,2]
[338949721,1727088660850,-500.0,0.0001299,2]
[338949722,1727088660859,-3424.78,0.0001299,2]
[338949723,1727088660869,-500.0,0.0001299,2]
[338949724,1727088660879,-500.0,0.0001299,2]
[338949725,1727088660889,-500.0,0.0001299,2]
[338949726,1727088660899,-830.55,0.0001299,2]
[338949727,1727088660911,-500.0,0.0001299,2]
[338949728,1727088660922,-487.11810204,0.0001299,2]
[338949729,1727088660934,-500.0,0.0001299,2]
[338949730,1727088660944,-500.0,0.0001299,2]
[338949731,1727088660955,-500.0,0.0001299,2]
[338949732,1727088660965,-500.0,0.0001299,2]
[338949733,1727088660977,-500.0,0.0001299,2]
[338949734,1727088660986,-1142.13,0.0001299,2]
[338949735,1727088660996,-853.17,0.0001299,2]
[338949736,1727088661007,-418.28340727,0.0001299,2]
[338949737,1727088661017,-955.99,0.0001299,2]
[338949738,1727088661027,-938.1,0.0001299,2]
[338949739,1727088661038,-734.31,0.0001299,2]
[338949740,1727088661048,-500.0,0.0001299,2]
[338949741,1727088661057,-500.0,0.0001299,2]
[338949742,1727088661068,-500.0,0.0001299,2]
[338949743,1727088661078,-500.0,0.0001299,2]
[338949744,1727088661088,-609.66,0.0001299,2]
[338949745,1727088661098,-500.0,0.0001299,2]
[338949746,1727088661108,-500.0,0.0001299,2]
[338949747,1727088661117,-500.0,0.0001299,2]
[338949748,1727088661127,-3577.66,0.0001299,2]
[338949749,1727088661136,-500.0,0.0001299,2]
[338949750,1727088661146,-500.0,0.0001299,2]
[338949751,1727088661155,-500.0,0.0001299,2]
[338949752,1727088661165,-500.0,0.0001299,2]
[338949753,1727088661175,-500.0,0.0001299,2]
[338949754,1727088661185,-625.43114185,0.0001299,2]
[338949755,1727088661195,-500.0,0.0001299,2]
[338949756,1727088661205,-976.7,0.0001299,2]
[338949757,1727088661216,-2079.93,0.0001299,2]
[338949758,1727088661225,-500.0,0.0001299,2]
[338949759,1727088661235,-500.0,0.0001299,2]
[338949760,1727088661245,-549.12,0.0001299,2]
[338949761,1727088661254,-500.0,0.0001299,2]
[338949762,1727088661264,-603.81,0.0001299,2]
[338949763,1727088661273,-500.0,0.0001299,2]
[338949764,1727088661283,-500.0,0.0001299,2]
[338949765,1727088661293,-500.0,0.0001299,2]
[338949766,1727088661303,-230.54558274,0.0001299,2]
[338949767,1727088661312,-631.85,0.0001299,2]
[338949768,1727088661322,-500.0,0.0001299,2]
[338949769,1727088661332,-500.0,0.0001299,2]
[338949770,1727088661342,-425.95030558,0.0001299,2]
[338949771,1727088661352,-3297.22,0.0001299,2]
[338949772,1727088661362,-500.0,0.0001299,2]
[338949773,1727088661372,-500.0,0.0001299,2]
[338949774,1727088661381,-500.63,0.0001299,2]
[338949775,1727088661391,-1525.25,0.0001299,2]
[338949776,1727088661400,-502.06772483,0.0001299,2]
[338949777,1727088661409,-730.59,0.0001299,2]
[338949778,1727088661418,-500.0,0.0001299,2]
[338949779,1727088661430,-1360.98,0.0001299,2]
[338949780,1727088661439,-500.0,0.0001299,2]
[338949781,1727088661448,-429.67207822,0.0001299,2]
[338949782,1727088661457,-538.83665089,0.0001299,2]
[338949783,1727088661466,-500.0,0.0001299,2]
[338949784,1727088661476,-630.29,0.0001299,2]
[338949785,1727088661485,-500.0,0.0001299,2]
[338949786,1727088661495,-500.0,0.0001299,2]
[338949787,1727088661504,-500.0,0.0001299,2]
[338949788,1727088661515,-500.0,0.0001299,2]
[338949789,1727088661525,-500.0,0.0001299,2]
[338949790,1727088661534,-500.0,0.0001299,2]
[338949791,1727088661544,-500.0,0.0001299,2]
[338949792,1727088661554,-625.68,0.0001299,2]
[338949793,1727088661564,-625.68,0.0001299,2]
[338949794,1727088661575,-500.0,0.0001299,2]
[338949795,1727088661585,-543.14,0.0001299,2]
[338949796,1727088661595,-500.0,0.0001299,2]
[338949797,1727088661605,-500.0,0.0001299,2]
[338949798,1727088661616,-500.0,0.0001299,2]
[338949799,1727088661627,-627.95,0.0001299,2]
[338949800,1727088661639,-627.95,0.0001299,2]
[338949801,1727088661650,-500.0,0.0001299,2]
[338949802,1727088661661,-500.0,0.0001299,2]
[338949803,1727088661671,-500.0,0.0001299,2]
[338949804,1727088661685,-557.75,0.0001299,2]
[338949805,1727088661695,-500.0,0.0001299,2]
[338949806,1727088661705,-303.398422,0.0001299,2]
[338949807,1727088661714,-10000.0,0.0001299,2]
[338949808,1727088661724,-2169.3,0.0001299,2]
[338949809,1727088661733,-2169.3,0.0001299,2]
[338949810,1727088661743,-303.398422,0.0001299,2]
[338949811,1727088661752,-10000.0,0.0001299,2]
[338949812,1727088661761,-516.09,0.0001299,2]
[338949813,1727088661771,-500.0,0.0001299,2]
[338949814,1727088661780,-500.0,0.0001299,2]
[338949815,1727088661791,-1291.1,0.0001299,2]
[338949816,1727088661801,-1170.51,0.0001299,2]
[338949817,1727088661812,-10000.0,0.0001299,2]
[338949818,1727088661821,-500.0,0.0001299,2]
[338949819,1727088661832,-500.0,0.0001299,2]
[338949820,1727088661846,-532.8,0.0001299,2]
[338949821,1727088661856,-532.8,0.0001299,2]
[338949822,1727088661865,-548.8,0.0001299,2]
[338949823,1727088661875,-1076.32,0.0001299,2]
[338949824,1727088661884,-1076.32,0.0001299,2]
[338949825,1727088661894,-500.0,0.0001299,2]
[338949826,1727088661904,-500.0,0.0001299,2]
[338949827,1727088661913,-534.08,0.0001299,2]
[338949828,1727088661923,-500.0,0.0001299,2]
[338949829,1727088661935,-2585.42,0.0001299,2]
[338949830,1727088661945,-1005.34,0.0001299,2]
[338949831,1727088661954,-761.36,0.0001299,2]
[338949832,1727088661963,-761.36,0.0001299,2]
[338949833,1727088661973,-500.0,0.0001299,2]
[338949834,1727088661982,-543.13,0.0001299,2]
[338949835,1727088661992,-739.76,0.0001299,2]
[338949836,1727088662002,-500.0,0.0001299,2]
[338949837,1727088662012,-500.0,0.0001299,2]
[338949838,1727088662022,-500.0,0.0001299,2]
[338949839,1727088662031,-500.0,0.0001299,2]
[338949840,1727088662043,-1039.09,0.0001299,2]
[338949841,1727088662054,-1039.09,0.0001299,2]
[338949842,1727088662065,-2896.26,0.0001299,2]
[338949843,1727088662075,-2896.26,0.0001299,2]
[338949844,1727088662084,-500.0,0.0001299,2]
[338949845,1727088662094,-910.09,0.0001299,2]
[338949846,1727088662103,-500.0,0.0001299,2]
[338949847,1727088662113,-500.0,0.0001299,2]
[338949848,1727088662122,-467.04749455,0.0001299,2]
[338949849,1727088662132,-500.0,0.0001299,2]
[338949850,1727088662141,-1704.581185,0.0001299,2]
[338949851,1727088662151,-571.83,0.0001299,2]
[338949852,1727088662162,-1704.581185,0.0001299,2]
[338949853,1727088662172,-500.0,0.0001299,2]
[338949854,1727088662183,-917.26,0.0001299,2]
[338949855,1727088662193,-500.0,0.0001299,2]
[338949856,1727088662202,-500.0,0.0001299,2]
[338949857,1727088662212,-500.0,0.0001299,2]
[338949858,1727088662221,-1265.46,0.0001299,2]
[338949859,1727088662231,-1265.46,0.0001299,2]
[338949860,1727088662241,-500.0,0.0001299,2]
[338949861,1727088662250,-500.0,0.0001299,2]
[338949862,1727088662262,-780.448373,0.0001299,2]
[338949863,1727088662272,-2026.07,0.0001299,2]
[338949864,1727088662284,-500.0,0.0001299,2]
[338949865,1727088662295,-500.0,0.0001299,2]
[338949866,1727088662306,-780.448373,0.0001299,2]
[338949867,1727088662317,-500.0,0.0001299,2]
[338949868,1727088662327,-500.0,0.0001299,2]
[338949869,1727088662337,-500.0,0.0001299,2]
[338949870,1727088662349,-500.0,0.0001299,2]
[338949871,1727088662360,-500.0,0.0001299,2]
[338949872,1727088662370,-819.38,0.0001299,2]
[338949873,1727088662380,-1332.81,0.0001299,2]
[338949874,1727088662390,-1332.81,0.0001299,2]
[338949875,1727088662400,-1456.69,0.0001299,2]
[338949876,1727088662410,-500.0,0.0001299,2]
[338949877,1727088662420,-500.0,0.0001299,2]
[338949878,1727088662430,-500.0,0.0001299,2]
[338949879,1727088662439,-500.0,0.0001299,2]
[338949880,1727088662449,-1053.22,0.0001299,2]
[338949881,1727088662460,-500.0,0.0001299,2]
[338949882,1727088662470,-500.0,0.0001299,2]
[338949883,1727088662480,-1496.937058,0.0001299,2]
[338949884,1727088662491,-222.833212,0.0001299,2]
[338949885,1727088662501,-1496.937058,0.0001299,2]
[338949886,1727088662510,-599.24,0.0001299,2]
[338949887,1727088662520,-500.0,0.0001299,2]
[338949888,1727088662529,-500.0,0.0001299,2]
[338949889,1727088662538,-500.0,0.00012991,2]
[338949890,1727088662548,-500.0,0.00012991,2]
[338949891,1727088662557,-616.1,0.00012991,2]
[338949892,1727088662566,-813.34,0.00012991,2]
[338949893,1727088662575,-789.9,0.00012991,2]
[338949894,1727088662585,-749.31,0.00012991,2]
[338949895,1727088662594,-721.97,0.00012991,2]
[338949896,1727088662604,-500.0,0.00012991,2]
[338949897,1727088662613,-686.61,0.00012991,2]
[338949898,1727088662622,-500.0,0.00012991,2]
[338949899,1727088662631,-500.0,0.00012991,2]
[338949900,1727088662642,-898.37,0.00012991,2]
[338949901,1727088662652,-500.0,0.00012991,2]
[338949902,1727088662662,-1003.87,0.00012991,2]
[338949903,1727088662672,-1832.21,0.00012991,2]
[338949904,1727088662684,-500.0,0.00012991,2]
[338949905,1727088662693,-500.0,0.00012991,2]
[338949906,1727088662702,-500.0,0.00012991,2]
[338949907,1727088662712,-506.23,0.00012991,2]
[338949908,1727088662721,-500.0,0.00012991,2]
[338949909,1727088662730,-500.0,0.00012991,2]
[338949910,1727088662740,-500.0,0.00012991,2]
[338949911,1727088662749,-500.0,0.00012991,2]
[338949912,1727088662760,-500.0,0.00012991,2]
[338949913,1727088662770,-500.0,0.00012991,2]
[338949914,1727088662780,-500.0,0.00012991,2]
[338949915,1727088662790,-575.47,0.00012991,2]
[338949916,1727088662800,-575.56,0.00012991,2]
[338949917,1727088662812,-667.07,0.00012991,2]
[338949918,1727088662889,-684.57,0.00012991,2]
[338949919,1727088662898,-500.0,0.00012991,2]
[338949920,1727088662908,-666.42,0.00012991,2]
[338949921,1727088662918,-500.0,0.00012991,2]
[338949922,1727088662930,-500.0,0.00012991,2]
[338949923,1727088662939,-500.0,0.00012991,2]
[338949924,1727088662948,-365.59620717,0.00012991,2]
[338949925,1727088662959,-500.0,0.00012991,2]
[338949926,1727088662969,-500.0,0.00012991,2]
[338949927,1727088662978,-500.0,0.00012991,2]
[338949928,1727088662988,-500.0,0.00012991,2]
[338949929,1727088662997,-1037.5,0.00012991,2]
[338949930,1727088663006,-500.0,0.00012991,2]
[338949931,1727088663016,-500.0,0.00012991,2]
[338949932,1727088663025,-500.0,0.00012991,2]
[338949933,1727088663034,-500.0,0.00012991,2]
[338949934,1727088663044,-500.0,0.00012991,2]
[338949935,1727088663053,-500.0,0.00012991,2]
[338949936,1727088663062,-1073.24,0.00012991,2]
[338949937,1727088663072,-500.0,0.00012991,2]
[338949938,1727088663081,-563.6,0.00012991,2]
[338949939,1727088663091,-1736.57,0.00012991,2]
[338949940,1727088663100,-1196.93,0.00012991,2]
[338949941,1727088663110,-975.93,0.00012991,2]
[338949942,1727088663119,-500.0,0.00012991,2]
[338949943,1727088663129,-500.0,0.00012991,2]
[338949944,1727088663139,-909.25,0.00012991,2]
[338949945,1727088663149,-1132.12,0.00012991,2]
[338949946,1727088663158,-642.8,0.00012991,2]
[338949947,1727088663168,-500.0,0.00012991,2]
[338949948,1727088663179,-500.0,0.00012991,2]
[338949949,1727088663190,-900.84,0.00012991,2]
[338949950,1727088663201,-1030.0,0.00012991,2]
[338949951,1727088663210,-1131.8,0.00012991,2]
[338949952,1727088663220,-554.67,0.00012991,2]
[338949953,1727088663230,-500.0,0.00012991,2]
[338949954,1727088663240,-500.0,0.00012991,2]
[338949955,1727088663249,-500.0,0.00012991,2]
[338949956,1727088663259,-560.53,0.00012991,2]
[338949957,1727088663268,-500.0,0.00012991,2]
[338949958,1727088663277,-500.0,0.00012991,2]
[338949959,1727088663287,-1248.85,0.00012991,2]
[338949960,1727088663297,-500.0,0.00012991,2]
[338949961,1727088663306,-500.0,0.00012991,2]
[338949962,1727088663316,-628.08,0.00012991,2]
[338949963,1727088663326,-500.0,0.00012991,2]
[338949964,1727088663335,-1687.96,0.00012991,2]
[338949965,1727088663344,-500.0,0.00012991,2]
[338949966,1727088663353,-500.0,0.00012991,2]
[338949967,1727088663363,-1357.91,0.00012991,2]
[338949968,1727088663373,-500.0,0.00012991,2]
[338949969,1727088663382,-500.0,0.00012991,2]
[338949970,1727088663392,-500.0,0.00012991,2]
[338949971,1727088663402,-500.0,0.00012991,2]
[338949972,1727088663411,-901.01,0.00012991,2]
[338949973,1727088663421,-500.0,0.00012991,2]
[338949974,1727088663431,-500.0,0.00012991,2]
[338949975,1727088663440,-507.39,0.00012991,2]
[338949976,1727088663450,-500.0,0.00012991,2]
[338949977,1727088663459,-934.46,0.00012991,2]
[338949978,1727088663468,-695.33,0.00012991,2]
[338949979,1727088663478,-500.0,0.00012991,2]
[338949980,1727088663487,-586.58833254,0.00012991,2]
[338949981,1727088663496,-150.0,0.00012991,2]
[338949982,1727088663505,-500.0,0.00012991,2]
[338949983,1727088663514,-891.53,0.00012991,2]
[338949984,1727088663524,-500.0,0.00012991,2]
[338949985,1727088663533,-500.0,0.00012991,2]
[338949986,1727088663542,-500.0,0.00012991,2]
[338949987,1727088663551,-1010.83,0.00012991,2]
[338949988,1727088663560,-500.0,0.00012991,2]
[338949989,1727088663569,-653.13,0.00012991,2]
[338949990,1727088663578,-500.0,0.00012991,2]
[338949991,1727088663587,-637.15,0.00012991,2]
[338949992,1727088663596,-500.0,0.00012991,2]
[338949993,1727088663606,-500.0,0.00012991,2]
[338949994,1727088663615,-868.01,0.00012991,2]
[338949995,1727088663624,-1336.01,0.00012991,2]
[338949996,1727088663634,-213.48,0.00012991,2]
[338949997,1727088663644,-869.88,0.00012991,2]
[338949998,1727088663653,-1080.26,0.00012991,2]
[338949999,1727088663663,-500.0,0.00012991,2]
[338950000,1727088663672,-500.0,0.00012991,2]
[338950001,1727088663683,-500.0,0.00012991,2]
[338950002,1727088663693,-500.0,0.00012991,2]
[338950003,1727088663703,-1140.86,0.00012991,2]
[338950004,1727088663712,-500.0,0.00012991,2]
[338950005,1727088663722,-646.75,0.00012991,2]
[338950006,1727088663732,-500.0,0.00012991,2]
[338950007,1727088663742,-787.23,0.00012991,2]
[338950008,1727088663752,-500.0,0.00012991,2]
[338950009,1727088663761,-500.0,0.00012991,2]
[338950010,1727088663770,-500.0,0.00012991,2]
[338950011,1727088663781,-1354.74,0.00012991,2]
[338950012,1727088663790,-2167.34,0.00012991,2]
[338950013,1727088663800,-517.22,0.00012991,2]
[338950014,1727088663809,-1424.98,0.00012991,2]
[338950015,1727088663818,-464.0854763,0.00012991,2]
[338950016,1727088663828,-500.0,0.00012991,2]
[338950017,1727088663839,-500.0,0.00012991,2]
[338950018,1727088663849,-701.89,0.00012991,2]
[338950019,1727088663858,-806.59,0.00012991,2]
[338950020,1727088663869,-688.95,0.00012991,2]
[338950021,1727088663878,-500.0,0.00012991,2]
[338950022,1727088663887,-500.0,0.00012991,2]
[338950023,1727088663897,-500.0,0.00012991,2]
[338950024,1727088663906,-522.17,0.00012991,2]
[338950025,1727088663916,-713.21,0.00012991,2]
[338950026,1727088663926,-500.0,0.00012991,2]
[338950027,1727088663936,-193.92,0.00012991,2]
[338950028,1727088663945,-500.0,0.00012991,2]
[338950029,1727088663955,-332.02681677,0.00012991,2]
[338950030,1727088663964,-500.0,0.00012991,2]
[338950031,1727088663973,-1163.62,0.00012991,2]
[338950032,1727088663983,-500.0,0.00012991,2]
[338950033,1727088663992,-500.0,0.00012991,2]
[338950034,1727088664001,-500.0,0.00012991,2]
[338950035,1727088664010,-500.0,0.00012991,2]
[338950036,1727088664020,-500.0,0.00012991,2]
[338950037,1727088664030,-521.25,0.00012991,2]
[338950038,1727088664039,-649.06,0.00012991,2]
[338950039,1727088664048,-895.62,0.00012991,2]
[338950040,1727088664057,-500.0,0.00012991,2]
[338950041,1727088664067,-500.0,0.00012991,2]
[338950042,1727088664076,-500.0,0.00012991,2]
[338950043,1727088664086,-500.0,0.00012991,2]
[338950044,1727088664096,-500.0,0.00012991,2]
[338950045,1727088664105,-500.0,0.00012991,2]
[338950046,1727088664114,-500.0,0.00012991,2]
[338950047,1727088664124,-649.9,0.00012991,2]
[338950048,1727088664134,-500.0,0.00012991,2]
[338950049,1727088664143,-890.99,0.00012991,2]
[338950050,1727088664153,-698.46,0.00012991,2]
[338950051,1727088664163,-683.16,0.00012991,2]
[338950052,1727088664172,-503.02795468,0.00012991,2]
[338950053,1727088664182,-549.76,0.00012991,2]
[338950054,1727088664191,-500.0,0.00012991,2]
[338950055,1727088664200,-500.0,0.00012991,2]
[338950056,1727088664210,-566.48,0.00012991,2]
[338950057,1727088664219,-500.0,0.00012991,2]
[338950058,1727088664229,-500.0,0.00012991,2]
[338950059,1727088664239,-1006.93,0.00012991,2]
[338950060,1727088664248,-500.0,0.00012991,2]
[338950061,1727088664257,-624.62,0.00012991,2]
[338950062,1727088664267,-500.0,0.00012991,2]
[338950063,1727088664277,-764.66,0.00012991,2]
[338950064,1727088664287,-565.19,0.00012991,2]
[338950065,1727088664297,-506.75,0.00012991,2]
[338950066,1727088664307,-733.42,0.00012991,2]
[338950067,1727088664316,-500.0,0.00012991,2]
[338950068,1727088664326,-500.0,0.00012991,2]
[338950069,1727088664336,-713.96,0.00012991,2]
[338950070,1727088664346,-532.01,0.00012991,2]
[338950071,1727088664357,-500.0,0.00012991,2]
[338950072,1727088664366,-936.36,0.00012991,2]
[338950073,1727088664376,-151.0,0.00012991,2]
[338950074,1727088664385,-539.83,0.00012991,2]
[338950075,1727088664395,-539.83,0.00012991,2]
[338950076,1727088664405,-500.0,0.00012991,2]
[338950077,1727088664414,-6895.1325944,0.00012991,2]
[338950078,1727088664423,-669.33,0.00012991,2]
[338950079,1727088664434,-552.85,0.00012991,2]
[338950080,1727088664443,-500.0,0.00012991,2]
[338950081,1727088664452,-500.0,0.00012991,2]
[338950082,1727088664461,-835.15,0.00012991,2]
[338950083,1727088664471,-705.63,0.00012991,2]
[338950084,1727088664480,-705.63,0.00012991,2]
[338950085,1727088664489,-500.0,0.00012991,2]
[338950086,1727088664499,-500.0,0.00012991,2]
[338950087,1727088664509,-500.0,0.00012991,2]
[338950088,1727088664518,-500.0,0.00012991,2]
[338950089,1727088664527,-500.0,0.00012991,2]
[338950090,1727088664536,-500.0,0.00012991,2]
[338950091,1727088664546,-500.0,0.00012991,2]
[338950092,1727088664555,-500.0,0.00012991,2]
[338950093,1727088664565,-500.0,0.00012991,2]
[338950094,1727088664575,-3424.78,0.00012991,2]
[338950095,1727088664585,-500.0,0.00012991,2]
[338950096,1727088664594,-500.0,0.00012991,2]
[338950097,1727088664604,-500.0,0.00012991,2]
[338950098,1727088664613,-830.55,0.00012991,2]
[338950099,1727088664622,-830.55,0.00012991,2]
[338950100,1727088664633,-151.0,0.00012991,2]
[338950101,1727088664643,-151.0,0.00012991,2]
[338950102,1727088664653,-500.0,0.00012991,2]
[338950103,1727088664662,-500.0,0.00012991,2]
[338950104,1727088664672,-500.0,0.00012991,2]
[338950105,1727088664683,-500.0,0.00012991,2]
[338950106,1727088664692,-500.0,0.00012991,2]
[338950107,1727088664701,-1142.13,0.00012991,2]
[338950108,1727088664711,-1142.13,0.00012991,2]
[338950109,1727088664720,-955.99,0.00012991,2]
[338950110,1727088664729,-938.1,0.00012991,2]
[338950111,1727088664738,-938.1,0.00012991,2]
[338950112,1727088664747,-734.31,0.00012991,2]
[338950113,1727088664756,-500.0,0.00012991,2]
[338950114,1727088664766,-500.0,0.00012991,2]
[338950115,1727088664776,-500.0,0.00012991,2]
[338950116,1727088664786,-500.0,0.00012991,2]
[338950117,1727088664795,-500.0,0.00012991,2]
[338950118,1727088664805,-3577.66,0.00012991,2]
[338950119,1727088664814,-500.0,0.00012991,2]
[338950120,1727088664823,-500.0,0.00012991,2]
[338950121,1727088664833,-500.0,0.00012991,2]
[338950122,1727088664847,-500.0,0.00012991,2]
[338950123,1727088664856,-500.0,0.00012991,2]
[338950124,1727088664866,-500.0,0.00012991,2]
[338950125,1727088664875,-500.0,0.00012991,2]
[338950126,1727088664886,-500.0,0.00012991,2]
[338950127,1727088664895,-549.12,0.00012991,2]
[338950128,1727088664905,-549.12,0.00012991,2]
[338950129,1727088664915,-603.81,0.00012991,2]
[338950130,1727088664924,-603.81,0.00012991,2]
[338950131,1727088664935,-500.0,0.00012991,2]
[338950132,1727088664944,-631.85,0.00012991,2]
[338950133,1727088664953,-616.59718853,0.00012991,2]
[338950134,1727088664963,-1182.752347,0.00012991,2]
[338950135,1727088664972,-500.0,0.00012991,2]
[338950136,1727088664982,-3297.22,0.00012991,2]
[338950137,1727088664992,-1182.752347,0.00012991,2]
[338950138,1727088665002,-500.0,0.00012991,2]
[338950139,1727088665011,-469.54,0.00012991,2]
[338950140,1727088665021,-500.63,0.00012991,2]
[338950141,1727088665031,-500.63,0.00012991,2]
[338950142,1727088665041,-1525.25,0.00012991,2]
[338950143,1727088665050,-2426.026241,0.00012991,2]
[338950144,1727088665059,-500.0,0.00012991,2]
[338950145,1727088665069,-1360.98,0.00012991,2]
[338950146,1727088665079,-2426.026241,0.00012991,2]
[338950147,1727088665088,-271.065539,0.00012991,2]
[338950148,1727088665098,-500.0,0.00012991,2]
[338950149,1727088665107,-500.0,0.00012991,2]
[338950150,1727088665116,-276.519878,0.00012991,2]
[338950151,1727088665126,-271.065539,0.00012991,2]
[338950152,1727088665135,-276.519878,0.00012991,2]
[338950153,1727088665145,-500.0,0.00012991,2]
[338950154,1727088665154,-500.0,0.00012991,2]
[338950155,1727088665163,-500.0,0.00012991,2]
[338950156,1727088665172,-500.0,0.00012991,2]
[338950157,1727088665183,-500.0,0.00012991,2]
[338950158,1727088665192,-151.0,0.00012991,2]
[338950159,1727088665202,-625.68,0.00012991,2]
[338950160,1727088665213,-625.68,0.00012991,2]
[338950161,1727088665223,-500.0,0.00012991,2]
[338950162,1727088665232,-500.0,0.00012991,2]
[338950163,1727088665243,-500.0,0.00012991,2]
[338950164,1727088665253,-500.0,0.00012991,2]
[338950165,1727088665263,-627.95,0.00012991,2]
[338950166,1727088665273,-151.0,0.00012991,2]
[338950167,1727088665283,-500.0,0.00012991,2]
[338950168,1727088665294,-627.95,0.00012991,2]
[338950169,1727088665303,-500.0,0.00012991,2]
[338950170,1727088665313,-500.0,0.00012991,2]
[338950171,1727088665324,-151.0,0.00012991,2]
[338950172,1727088665334,-500.0,0.00012991,2]
[338950173,1727088665343,-2169.3,0.00012991,2]
[338950174,1727088665353,-2169.3,0.00012991,2]
[338950175,1727088665363,-516.09,0.00012991,2]
[338950176,1727088665374,-500.0,0.00012991,2]
[338950177,1727088665384,-500.0,0.00012991,2]
[338950178,1727088665394,-155.16832669,0.00012991,2]
[338950179,1727088665404,-1170.51,0.00012991,2]
[338950180,1727088665413,-532.8,0.00012991,2]
[338950181,1727088665423,-532.8,0.00012991,2]
[338950182,1727088665434,-1076.32,0.00012991,2]
[338950183,1727088665443,-500.0,0.00012991,2]
[338950184,1727088665453,-1076.32,0.00012991,2]
[338950185,1727088665464,-1854.0197015,0.00012991,2]
[338950186,1727088665474,-500.0,0.00012991,2]